bitfinex-derivatives/quotes_BTCF0:USTF0_20250207
["timestamp","ask_amount","ask_price","bid_price","bid_amount"]
[1738944068953,0.3608,98259.0,98257.0,0.2034552]
[1738944069250,0.3608,98270.0,98269.0,0.2034315]
[1738944069564,0.002,98277.0,98276.0,0.203417]
[1738944070058,0.2034336,98268.0,98267.0,0.00015266]
[1738944070258,0.2034677,98252.0,98239.0,0.3608]
[1738944070469,0.3608,98249.0,98242.0,0.2034872]
[1738944070657,0.3608,98249.0,98245.0,0.2034803]
[1738944070959,0.3608,98249.0,98231.0,0.2035101]
[1738944071164,0.3608,98234.0,98231.0,0.2035101]
[1738944071460,0.2035093,98232.0,98230.0,0.00015266]
[1738944071655,0.27598239,98231.0,98220.0,0.00152695]
[1738944071961,0.2235,98233.0,98220.0,0.00152695]
[1738944072161,0.3608,98226.0,98220.0,0.00152695]
[1738944072671,0.5643212,98226.0,98213.0,0.2035463]
[1738944072858,0.2235,98233.0,98213.0,0.2035463]
[1738944072859,0.2235,98233.0,98213.0,0.00015266]
[1738944073167,0.2235,98233.0,98232.0,0.2035081]
[1738944073467,0.3608,98235.0,98213.0,0.00015266]
[1738944074163,0.001,98233.0,98220.0,0.2035319]
[1738944074360,0.001,98233.0,98231.0,0.2035095]
[1738944074863,0.3608,98232.0,98231.0,0.2035095]
[1738944075158,0.001,98233.0,98213.0,0.00015266]
[1738944075361,0.3608,98226.0,98225.0,0.2035226]
[1738944075664,0.5643218,98226.0,98214.0,0.2035443]
[1738944075861,0.3608,98216.0,98214.0,0.2035443]
[1738944076068,0.3608,98216.0,98213.0,1e-08]
[1738944076257,0.4788,98215.0,98161.0,0.60948]
[1738944076452,0.3608,98187.0,98161.0,0.60948]
[1738944076656,0.3608,98187.0,98181.0,0.2036126]
[1738944076863,0.3608,98177.0,98176.0,0.2036243]
[1738944077058,0.3608,98187.0,98181.0,0.2036138]
[1738944077266,0.3608,98187.0,98161.0,0.60948]
[1738944077476,0.3608,98174.0,98170.0,0.00106737]
[1738944077855,0.7216,98171.0,98170.0,0.00206737]
[1738944078662,0.7216,98171.0,98159.0,0.24104954]
[1738944078867,0.2036408,98168.0,98159.0,0.24104954]
[1738944079163,0.3608,98160.0,98159.0,0.24104954]
[1738944079755,0.3608,98160.0,98157.0,0.2036631]
[1738944079958,0.3608,98160.0,98150.0,0.00010194]
[1738944080155,0.3608,98151.0,98150.0,0.00010194]
[1738944080359,0.3608,98151.0,98139.0,0.203699]
[1738944080566,0.3608,98140.0,98139.0,0.203699]
[1738944080766,0.3608,98151.0,98145.0,0.2036885]
[1738944080954,0.3608,98151.0,98146.0,0.2036862]
[1738944081154,0.3608,98151.0,98120.0,0.27598239]
[1738944081371,0.3608,98152.0,98125.0,0.0509322]
[1738944081667,0.3608,98152.0,98151.0,0.2036762]
[1738944081866,0.00015284,98148.0,98139.0,0.002]
[1738944082072,0.3608,98140.0,98124.0,0.2037309]
[1738944082259,0.3608,98126.0,98124.0,0.2037309]
[1738944082965,0.3608,98125.0,98117.0,0.2037468]
[1738944083170,0.3608,98125.0,98123.0,0.2037339]
[1738944083560,0.3608,98125.0,98116.0,0.00152859]
[1738944083865,0.3608,98117.0,98116.0,0.00152859]
[1738944085562,0.3608,98117.0,98116.0,0.00352859]
[1738944085968,0.3608,98117.0,98116.0,0.00452859]
[1738944086468,0.3678,98117.0,98116.0,0.00152859]
[1738944086668,0.3708,98117.0,98116.0,0.00252859]
[1738944087060,0.3678,98117.0,98100.0,0.1]
[1738944087256,0.2038026,98100.0,98073.0,0.2255]
[1738944087463,0.3608,98091.0,98073.0,0.2255]
[1738944087684,0.3608,98091.0,98089.0,0.2038233]
[1738944088267,0.3608,98091.0,98085.0,0.2038325]
[1738944088466,0.3608,98089.0,98079.0,0.2038444]
[1738944088660,0.3608,98080.0,98068.0,0.2038669]
[1738944088862,0.3608,98071.0,98047.0,0.3608]
[1738944089063,0.3608,98071.0,98069.0,0.2038664]
[1738944089459,0.36095292,98080.0,98053.0,0.30292543]
[1738944089662,0.36095292,98080.0,98079.0,0.203846]
[1738944089866,0.00015292,98080.0,98079.0,0.203846]
[1738944090369,0.00015292,98080.0,98079.0,0.207846]
[1738944090566,0.00315292,98080.0,98079.0,0.207846]
[1738944090869,0.43855292,98080.0,98079.0,0.004]
[1738944091059,0.43855292,98080.0,98010.0,0.32697949]
[1738944091060,0.3608,98050.0,97992.0,0.0510065]
[1738944091261,0.7216,98032.0,97989.0,0.36338675]
[1738944091561,0.3608,98006.0,98004.0,0.2040018]
[1738944091763,0.3608,98006.0,97995.0,0.2040201]
[1738944091958,0.3608,98006.0,97991.0,0.2040287]
[1738944092262,0.3608,98006.0,97989.0,0.56741915]
[1738944092472,0.37191503,98006.0,98000.0,0.07508878]
[1738944092765,0.37191503,98006.0,98005.0,0.2039999]
[1738944092966,0.37291503,98006.0,98005.0,0.005]
[1738944093469,0.37291503,98006.0,98005.0,0.2089999]
[1738944093676,0.44939503,98006.0,98000.0,0.01]
[1738944093877,0.44939503,98006.0,97997.0,0.16529662]
[1738944094176,0.3608,97998.0,97997.0,0.14122062]
[1738944094363,0.3608,97998.0,97988.0,0.2040338]
[1738944094562,0.01211503,98006.0,97988.0,0.3608]
[1738944094763,0.00153189,98026.0,98005.0,0.3608]
[1738944095188,0.00153189,98026.0,98006.0,0.2039978]
[1738944095189,2e-08,98007.0,98006.0,0.2039978]
[1738944095368,2e-08,98007.0,98006.0,0.4324978]
[1738944095563,0.01090123,98044.0,98024.0,0.05099]
[1738944095763,0.36233113,98062.0,98043.0,0.3608]
[1738944095963,0.36233113,98062.0,98025.0,0.7023]
[1738944095964,0.3608,98054.0,98025.0,0.7023]
[1738944096277,0.01118394,98071.0,98053.0,0.3608]
[1738944096480,0.2292,98089.0,98061.0,0.3608]
[1738944096773,0.00015302,98072.0,98061.0,0.3608]
[1738944097080,0.3608,98067.0,98053.0,0.3608]
[1738944097271,0.004,98054.0,98052.0,0.00015302]
[1738944098670,0.01118087,98072.0,98052.0,0.00015302]
[1738944098869,0.002,98054.0,98053.0,0.2039]
[1738944099072,0.00815302,98072.0,98053.0,0.3608]
[1738944099381,0.00015302,98072.0,98052.0,0.00015302]
[1738944099681,0.005,98054.0,98053.0,0.2039]
[1738944100071,0.003,98054.0,98053.0,0.2039]
[1738944100272,0.002,98054.0,98053.0,0.2039]
[1738944100969,0.00915302,98072.0,98052.0,0.00015302]
[1738944100970,0.00915302,98072.0,98070.0,0.2038645]
[1738944101171,0.00915302,98072.0,98071.0,0.3608]
[1738944101872,0.01715302,98072.0,98071.0,0.3608]
[1738944102072,0.01105623,98090.0,98081.0,0.2038409]
[1738944102274,0.01105623,98090.0,98060.0,0.27598239]
[1738944102275,0.2255,98099.0,98085.0,0.3608]
[1738944102668,0.3608,98119.0,98096.0,0.3608]
[1738944102865,0.3608,98119.0,98098.0,0.3608]
[1738944103070,0.08132,98125.0,98098.0,0.3608]
[1738944103276,0.3608,98120.0,98098.0,0.3608]
[1738944103581,0.00015294,98109.0,98098.0,0.3608]
[1738944104080,0.2037859,98108.0,98098.0,0.3608]
[1738944104671,0.08088,98107.0,98098.0,0.3608]
[1738944105388,0.3608,98099.0,98089.0,0.00015294]
[1738944105683,0.5645947,98104.0,98098.0,0.001]
[1738944105684,0.00144,98104.0,98098.0,0.001]
[1738944105988,0.2038388,98083.0,98059.0,0.3608]
[1738944106275,0.3608,98064.0,98040.0,0.27598239]
[1738944106681,0.3608,98064.0,98058.0,0.2038884]
[1738944106871,0.3608,98074.0,98058.0,0.2038884]
[1738944107066,0.00015294,98071.0,98058.0,0.203888]
[1738944107270,0.00015294,98071.0,98061.0,0.2038831]
[1738944107671,0.00015294,98071.0,98051.0,0.00015294]
[1738944107871,0.3608,98066.0,98059.0,0.2038861]
[1738944108073,0.3608,98064.0,98051.0,0.00015294]
[1738944108377,0.001,98064.0,98051.0,0.00015294]
[1738944108574,0.3608,98060.0,98053.0,0.2038989]
[1738944108772,0.3608,98060.0,98051.0,0.00015294]
[1738944109284,0.3608,98052.0,98051.0,0.00015294]
[1738944109669,0.3608,98055.0,98051.0,0.00115294]
[1738944110087,0.3608,98055.0,98020.0,0.00153007]
[1738944110382,0.3608,98022.0,98020.0,0.00153007]
[1738944110583,0.2039459,98031.0,98020.0,0.00153007]
[1738944110773,0.08024,98036.0,98020.0,0.00153007]
[1738944110973,0.08024,98036.0,98020.0,0.36233007]
[1738944111181,0.08024,98036.0,98034.0,0.2039391]
[1738944111480,0.3608,98035.0,98020.0,0.00153007]
[1738944111672,0.3608,98022.0,98020.0,0.00153007]
[1738944111875,0.2039666,98021.0,98020.0,0.00153007]
[1738944112179,0.3608,98022.0,98000.0,0.1]
[1738944112386,0.7216,98001.0,98000.0,0.1]
[1738944112585,0.7216,98001.0,97961.0,0.3608]
[1738944112776,0.3608,97985.0,97976.0,0.20406]
[1738944112976,0.5648597,97977.0,97959.0,0.2040951]
[1738944113280,0.07984,97976.0,97965.0,0.2040832]
[1738944113983,0.5648783,97968.0,97948.0,0.2041177]
[1738944114182,0.5648783,97968.0,97936.0,0.3608]
[1738944114183,0.3608,97958.0,97936.0,0.3608]
[1738944114478,0.36220001,97968.0,97945.0,0.3608]
[1738944114670,0.3608,97968.0,97952.0,0.2041083]
[1738944114870,0.00015311,97960.0,97959.0,0.2040956]
[1738944115283,0.00015311,97960.0,97959.0,0.2130956]
[1738944116070,0.00115311,97960.0,97959.0,0.2040956]
[1738944116479,1e-08,97960.0,97959.0,0.2040956]
[1738944116877,1e-08,97960.0,97959.0,0.2130956]
[1738944117082,1e-08,97960.0,97959.0,0.5130956]
[1738944117882,2e-08,97969.0,97968.0,0.2040769]
[1738944118085,2e-08,97969.0,97968.0,0.5648769]
[1738944118287,0.2040141,97999.0,97990.0,0.2040299]
[1738944118482,0.2040141,97999.0,97980.0,0.3608]
[1738944118671,0.3608,98006.0,97992.0,0.2040258]
[1738944118983,0.3608,98006.0,97980.0,0.3608]
[1738944118984,0.14867037,97999.0,97995.0,0.2040195]
[1738944119179,0.14867037,97999.0,97980.0,0.36095311]
[1738944119376,0.14867037,97999.0,97998.0,0.2040144]
[1738944119579,0.14967037,97999.0,97998.0,0.2040144]
[1738944119784,0.14967037,97999.0,97980.0,0.36095311]
[1738944119978,0.3608,97989.0,97980.0,0.00015311]
[1738944120682,0.3608,97989.0,97983.0,0.2040438]
[1738944120880,0.07864,97996.0,97980.0,0.00015311]
[1738944121083,0.2040318,97990.0,97980.0,0.00015311]
[1738944121284,0.3608,97985.0,97980.0,0.00015311]
[1738944121682,0.3608,97982.0,97961.0,0.2040904]
[1738944121879,0.3608,97982.0,97953.0,0.3608]
[1738944122186,0.5648492,97982.0,97968.0,0.2040763]
[1738944122485,0.2040625,97975.0,97968.0,0.2040763]
[1738944122683,0.36073385,97982.0,97955.0,0.2041037]
[1738944122684,0.3608,97971.0,97955.0,0.2041037]
[1738944122882,0.2040827,97966.0,97962.0,0.00015311]
[1738944123085,0.07832,97970.0,97962.0,0.00015311]
[1738944123280,0.3608,97963.0,97919.0,0.3608]
[1738944123480,0.3608,97946.0,97919.0,0.3608]
[1738944123675,0.3608,97920.0,97900.0,0.1]
[1738944123879,0.07828,97919.0,97910.0,0.2041977]
[1738944124085,0.3608,97911.0,97900.0,0.1]
[1738944124287,0.2042254,97897.0,97891.0,0.00153213]
[1738944124491,0.0784,97899.0,97873.0,0.3608]
[1738944124797,0.0784,97899.0,97898.0,0.2042228]
[1738944125088,0.2042122,97904.0,97872.0,0.3608]
[1738944125284,0.2042641,97879.0,97862.0,0.46591679]
[1738944125489,0.27598239,97872.0,97862.0,0.46591679]
[1738944125679,0.3608,97875.0,97862.0,0.46591679]
[1738944125680,0.3608,97875.0,97867.0,0.2042863]
[1738944125887,0.3608,97884.0,97873.0,0.2042749]
[1738944126079,0.0001532,97877.0,97862.0,0.46591679]
[1738944126381,0.0001532,97877.0,97869.0,0.2042827]
[1738944126581,0.0001532,97877.0,97862.0,0.46991679]
[1738944126782,0.0001532,97877.0,97872.0,0.2042764]
[1738944126990,0.0001532,97877.0,97862.0,0.004]
[1738944127189,0.0001532,97877.0,97875.0,0.2042706]
[1738944128090,0.3608,97876.0,97864.0,0.2042931]
[1738944128290,0.3608,97876.0,97873.0,0.003]
[1738944128882,0.0011532,97877.0,97874.0,0.204271]
[1738944129192,0.0011532,97877.0,97847.0,0.3608]
[1738944129193,0.0011532,97877.0,97875.0,0.209269]
[1738944129594,0.0011532,97877.0,97873.0,0.006]
[1738944129779,0.0001532,97877.0,97873.0,0.006]
[1738944129983,0.001,97876.0,97873.0,0.006]
[1738944130283,0.2052704,97876.0,97873.0,0.006]
[1738944130487,0.001,97876.0,97874.0,0.2042729]
[1738944130986,0.0001532,97877.0,97876.0,0.2042687]
[1738944131287,0.3608,97896.0,97875.0,0.3608]
[1738944131481,0.001,97877.0,97876.0,0.2042687]
[1738944131888,0.001,97877.0,97876.0,0.5650687]
[1738944132393,0.3618,97896.0,97876.0,0.3608]
[1738944132791,0.3619532,97896.0,97860.0,0.50918239]
[1738944133088,0.3619532,97896.0,96972.0,0.12635401]
[1738944133089,0.7216,97861.0,97850.0,0.2043222]
[1738944133297,0.3608,97852.0,97851.0,0.2043209]
[1738944133484,0.3608,97872.0,97843.0,0.3608]
[1738944133693,0.3608,97864.0,97861.0,0.2042996]
[1738944134188,0.2043102,97857.0,97845.0,0.2043321]
[1738944134395,0.3608,97846.0,97845.0,0.2043321]
[1738944135091,0.7216,97846.0,97832.0,0.000125]
[1738944135291,0.3608,97853.0,97832.0,0.000125]
[1738944135495,0.3608,97853.0,97845.0,0.001]
[1738944135792,0.001,97846.0,97845.0,0.001]
[1738944135992,0.001,97846.0,97845.0,0.2043334]
[1738944136395,0.3608,97850.0,97832.0,0.000125]
[1738944136591,0.3608,97850.0,97849.0,0.204325]
[1738944136893,0.00015329,97852.0,97851.0,0.2043209]
[1738944138296,0.36095329,97852.0,97851.0,0.2043209]
[1738944138495,0.3608,97878.0,97849.0,0.3608]
[1738944138799,0.3608,97870.0,97869.0,0.2042833]
[1738944141297,0.3608,97908.0,97898.0,0.00015321]
[1738944141495,0.3608,97899.0,97898.0,0.00015321]
[1738944141899,0.43832,97899.0,97861.0,0.3608]
[1738944142093,0.43832,97899.0,97886.0,0.2042462]
[1738944142292,0.3608,97899.0,97861.0,0.3608]
[1738944142490,0.3608,97899.0,97872.0,0.2042752]
[1738944142491,0.3608,97890.0,97872.0,0.2042752]
[1738944142699,0.3618,97899.0,97893.0,0.2042332]
[1738944143100,0.3618,97899.0,97886.0,0.00015321]
[1738944143302,0.3608,97888.0,97886.0,0.00015321]
[1738944143694,0.3608,97888.0,97869.0,0.3608]
[1738944143894,0.3608,97870.0,97831.0,0.3608]
[1738944144093,0.3608,97845.0,97844.0,0.2043355]
[1738944145102,0.3608,97845.0,97844.0,0.008]
[1738944145806,0.3618,97845.0,97844.0,0.007]
[1738944146199,0.3618,97845.0,97844.0,0.2113355]
[1738944146404,0.2042484,97886.0,97876.0,0.204267]
[1738944146711,0.3608,97909.0,97901.0,0.2042165]
[1738944147003,0.588,97923.0,97901.0,0.2042165]
[1738944147004,0.00140001,97923.0,97921.0,0.2041733]
[1738944147204,0.07728,97961.0,97921.0,0.2041733]
[1738944147205,0.01099302,97952.0,97921.0,0.7216]
[1738944147414,0.3608,97958.0,97933.0,0.3608]
[1738944147613,0.0001532,97946.0,97941.0,0.3608]
[1738944147906,0.21116499,97963.0,97943.0,0.3608]
[1738944148108,0.21116499,97963.0,97927.0,0.0001532]
[1738944148109,0.3608,97957.0,97949.0,0.2041151]
[1738944148410,0.21116499,97963.0,97949.0,0.3608]
[1738944148607,0.21116499,97963.0,97961.0,0.5648894]
[1738944148798,0.05561802,97971.0,97961.0,0.3608]
[1738944149003,0.00153173,98008.0,97991.0,0.204029]
[1738944149199,0.3608,98003.0,97991.0,0.204029]
[1738944149708,0.2040193,97996.0,97981.0,0.2040491]
[1738944149907,0.00153173,98008.0,97991.0,0.204029]
[1738944150309,0.00015311,97996.0,97991.0,0.204029]
[1738944150509,0.00015311,97996.0,97980.0,0.27598239]
[1738944150715,0.00015311,97996.0,97990.0,0.2040307]
[1738944150909,0.3608,97998.0,97977.0,0.00015311]
[1738944151212,0.37598239,98000.0,97952.0,0.2041084]
[1738944151213,0.2040586,97977.0,97952.0,0.2041084]
[1738944151420,0.3608,97967.0,97950.0,0.3608]
[1738944151610,0.2040977,97958.0,97950.0,0.3608]
[1738944151802,0.3608,97967.0,97953.0,0.2041069]
[1738944151999,0.2040831,97965.0,97950.0,0.3608]
[1738944152202,0.2040391,97987.0,97977.0,0.001]
[1738944152399,0.005,97998.0,97988.0,0.2040332]
[1738944152614,0.005,97998.0,97987.0,0.2040371]
[1738944152802,0.00015311,97992.0,97991.0,0.204029]
[1738944153000,0.00015311,97992.0,97991.0,0.564829]
[1738944153402,0.00015311,97992.0,97991.0,0.3608]
[1738944153617,0.00015311,97992.0,97981.0,0.36095311]
[1738944153618,0.204038,97987.0,97981.0,0.00015311]
[1738944153917,0.36095311,97992.0,97982.0,0.2040475]
[1738944154304,0.5648313,97990.0,97982.0,0.2040475]
[1738944154612,0.2040459,97983.0,97981.0,0.00015311]
[1738944154804,0.3608,97982.0,97981.0,0.00015311]
[1738944155212,0.2040295,97991.0,97982.0,0.2040477]
[1738944155525,0.00015311,97992.0,97990.0,0.2040297]
[1738944156115,0.00015311,97992.0,97986.0,0.2040392]
[1738944156316,0.2040343,97989.0,97981.0,0.00215311]
[1738944156520,0.3608,97991.0,97981.0,0.00215311]
[1738944156824,0.00015311,97992.0,97990.0,0.3608]
[1738944157022,0.00015311,97992.0,97991.0,0.204029]
[1738944158120,0.2040359,97988.0,97981.0,0.00015311]
[1738944158322,0.00315311,97992.0,97981.0,0.00015311]
[1738944158729,0.00015311,97992.0,97990.0,0.2040295]
[1738944158917,0.3608,97991.0,97981.0,0.00015311]
[1738944159113,0.3608,97991.0,97982.0,0.2040477]
[1738944159321,0.3608,97991.0,97981.0,0.00015311]
[1738944159627,0.3608,97982.0,97954.0,0.6112]
[1738944159825,0.2040644,97974.0,97964.0,0.2040836]
[1738944160019,0.2040644,97974.0,97954.0,0.6112]
[1738944160223,0.3608,97982.0,97963.0,0.3608]
[1738944160421,0.00140001,97990.0,97989.0,0.2040331]
[1738944160623,0.00415311,97992.0,97991.0,0.204029]
[1738944160929,0.00415311,97992.0,97991.0,0.564829]
[1738944161228,0.00015311,97992.0,97991.0,0.564829]
[1738944161726,0.00015311,97992.0,97991.0,0.3608]
[1738944162115,0.00315311,97992.0,97980.0,0.00015311]
[1738944162313,0.2040407,97986.0,97980.0,0.00015311]
[1738944162737,0.2040498,97981.0,97980.0,0.00015311]
[1738944162925,0.3608,97990.0,97981.0,0.2040488]
[1738944163426,0.3608,97982.0,97980.0,0.00015311]
[1738944163632,0.2040498,97981.0,97980.0,0.00015311]
[1738944163832,0.3608,97982.0,97980.0,0.00015311]
[1738944164025,0.5648493,97982.0,97980.0,0.00015311]
[1738944164723,0.3608,97982.0,97980.0,0.00015311]
[1738944165323,0.3608,97990.0,97980.0,0.00015311]
[1738944165527,0.00015311,97992.0,97990.0,0.2040299]
[1738944165834,0.00015311,97992.0,97980.0,0.00115311]
[1738944165835,0.3608,97991.0,97980.0,0.00115311]
[1738944166037,0.204036,97988.0,97980.0,0.00115311]
[1738944166328,0.3608,97991.0,97990.0,0.2040311]
[1738944166521,0.00015311,97992.0,97990.0,0.2040311]
[1738944166934,0.00015311,97992.0,97985.0,0.3608]
[1738944167237,0.2040361,97988.0,97980.0,0.00015311]
[1738944167425,0.00015311,97992.0,97980.0,0.00015311]
[1738944167426,0.001,97982.0,97981.0,0.2040498]
[1738944168123,0.00015311,97992.0,97988.0,0.2040352]
[1738944168124,0.00315311,97992.0,97988.0,0.2040352]
[1738944168320,0.00315311,97992.0,97980.0,0.00015311]
[1738944168533,0.20718051,97992.0,97986.0,0.2040379]
[1738944168830,0.00015311,97992.0,97980.0,0.00015311]
[1738944169038,0.00015311,97992.0,97990.0,0.2040307]
[1738944169428,0.4661,98037.0,97987.0,0.3608]
[1738944169628,0.079,98036.0,98024.0,0.2039583]
[1738944169827,0.079,98036.0,98010.0,0.27598239]
[1738944170034,0.2039385,98035.0,98022.0,0.2039631]
[1738944170337,0.203943,98033.0,98022.0,0.2039631]
[1738944170537,0.47800304,98037.0,98013.0,0.2039812]
[1738944170740,0.3608,98026.0,98024.0,0.001]
[1738944171035,0.2039699,98020.0,98018.0,0.00015301]
[1738944171238,0.3608,98029.0,98003.0,0.5648026]
[1738944171239,0.2039892,98011.0,98003.0,0.3608]
[1738944171434,0.2039914,98010.0,98003.0,0.3608]
[1738944171632,0.0786,98018.0,98003.0,0.3608]
[1738944171938,0.2039895,98010.0,98003.0,0.3608]
[1738944172133,0.0786,98018.0,97989.0,0.3608]
[1738944172134,0.3608,98011.0,97989.0,0.3608]
[1738944172439,0.2040458,97983.0,97972.0,0.0015309]
[1738944172625,0.3608,97981.0,97972.0,0.0015309]
[1738944173227,0.0001531,97987.0,97986.0,0.2040393]
[1738944173627,0.0001531,97987.0,97978.0,0.2040552]
[1738944174028,0.3608,97982.0,97973.0,0.3608]
[1738944174235,0.2040664,97973.0,97972.0,0.0015309]
[1738944174639,0.3608,97974.0,97968.0,0.0001531]
[1738944174640,0.2040747,97969.0,97968.0,0.0001531]
[1738944174834,0.5648747,97969.0,97968.0,0.0001531]
[1738944175038,0.2040863,97964.0,97947.0,0.2041197]
[1738944175240,0.3608,97951.0,97947.0,0.2041197]
[1738944175625,0.3608,97951.0,97940.0,0.24155337]
[1738944175826,0.3608,97951.0,97925.0,0.3608]
[1738944175827,0.3608,97941.0,97925.0,0.3608]
[1738944176034,0.3608,97933.0,97918.0,0.00153174]
[1738944176234,0.3608,97933.0,97927.0,0.0001531]
[1738944176541,0.5649602,97928.0,97927.0,0.0001531]
[1738944177038,0.43848,97928.0,97927.0,0.0001531]
[1738944177538,0.3608,97928.0,97927.0,0.0001531]
[1738944177736,0.0001531,97946.0,97927.0,0.0001531]
[1738944177737,0.3608,97936.0,97927.0,0.0031531]
[1738944178733,0.3608,97936.0,97927.0,0.0081531]
[1738944179942,0.3609531,97946.0,97927.0,0.0071531]
[1738944180442,0.3609531,97946.0,97930.0,0.3608]
[1738944181041,0.3609531,97946.0,97938.0,0.2041389]
[1738944181437,0.3639531,97946.0,97938.0,0.2041389]
[1738944181741,0.3649531,97946.0,97938.0,0.2041389]
[1738944181940,0.3649531,97946.0,97930.0,0.3608]
[1738944181941,0.3608,97944.0,97927.0,0.0001531]
[1738944182135,0.7216,97928.0,97898.0,0.45655284]
[1738944182333,0.5650165,97901.0,97898.0,0.45655284]
[1738944182631,0.5650165,97901.0,97894.0,0.30218102]
[1738944182838,0.3608,97901.0,97897.0,0.2042246]
[1738944183142,0.3608,97901.0,97894.0,0.30218102]
[1738944183339,0.3608,97908.0,97894.0,0.30218102]
[1738944183640,0.204212,97904.0,97894.0,0.30218102]
[1738944184043,0.001,97901.0,97894.0,0.30218102]
[1738944184843,0.2042163,97902.0,97894.0,0.30218102]
[1738944185040,0.07644,97901.0,97894.0,0.30218102]
[1738944185256,0.2042447,97888.0,97872.0,0.2042751]
[1738944185546,0.3608,97890.0,97872.0,0.2042751]
[1738944185738,0.3608,97877.0,97872.0,0.2042751]
[1738944185938,0.3608,97877.0,97870.0,0.45655284]
[1738944186145,0.2042717,97875.0,97861.0,0.2042991]
[1738944186335,0.3608,97869.0,97861.0,0.2042991]
[1738944186644,0.3608,97869.0,97852.0,0.204317]
[1738944186843,0.3608,97869.0,97853.0,0.2043155]
[1738944187147,0.3608,97869.0,97841.0,0.2349]
[1738944187148,0.3608,97869.0,97849.0,0.3608]
[1738944187536,0.2043032,97860.0,97849.0,0.3608]
[1738944187737,0.2043032,97860.0,97850.0,0.2043213]
[1738944188044,0.2043265,97849.0,97835.0,0.2043529]
[1738944188243,0.3608,97857.0,97827.0,0.3608]
[1738944188444,0.37350783,97869.0,97827.0,0.3608]
[1738944188445,0.3608,97837.0,97827.0,0.3608]
[1738944189139,0.00015326,97844.0,97831.0,0.2043618]
[1738944189342,0.00015326,97844.0,97837.0,0.2043494]
[1738944189531,0.00015326,97844.0,97812.0,0.3608]
[1738944189532,0.3608,97838.0,97812.0,0.3608]
[1738944189741,0.2043541,97836.0,97815.0,0.2043958]
[1738944189938,0.2043541,97836.0,97832.0,0.004125]
[1738944190341,0.2043541,97836.0,97800.0,0.1]
[1738944190342,0.2043792,97824.0,97800.0,0.1]
[1738944190641,0.3608,97813.0,97800.0,0.1]
[1738944191237,0.3608,97813.0,97803.0,0.3608]
[1738944191443,0.3608,97813.0,97803.0,0.5652203]
[1738944191644,0.07696,97815.0,97803.0,0.5652203]
[1738944192038,0.00015335,97822.0,97803.0,0.3608]
[1738944192249,0.01076281,97822.0,97805.0,0.2044161]
[1738944192553,0.00015335,97822.0,97809.0,0.2044079]
[1738944193249,0.001,97813.0,97809.0,0.2044079]
[1738944193451,0.001,97813.0,97803.0,0.3608]
[1738944193746,0.00015335,97822.0,97821.0,0.2043835]
[1738944194140,0.36295335,97822.0,97809.0,0.001]
[1738944194442,0.36295335,97822.0,97797.0,0.2044323]
[1738944194443,0.3608,97810.0,97797.0,0.2044323]
[1738944194649,0.00015335,97822.0,97809.0,0.3608]
[1738944194846,0.01089198,97822.0,97809.0,0.5652085]
[1738944195043,0.5661814,97822.0,97821.0,0.009]
[1738944195549,0.2043945,97816.0,97803.0,0.004]
[1738944195753,0.2043981,97815.0,97803.0,0.004]
[1738944196043,0.2043883,97819.0,97803.0,0.004]
[1738944196246,0.002,97822.0,97814.0,0.204398]
[1738944196459,0.002,97822.0,97790.0,0.27598239]
[1738944196460,0.2043836,97821.0,97804.0,0.2044178]
[1738944196750,0.002,97822.0,97814.0,0.2043968]
[1738944196948,0.002,97822.0,97803.0,0.3608]
[1738944197152,0.001,97822.0,97809.0,0.003]
[1738944197341,0.2043985,97814.0,97809.0,0.003]
[1738944198047,0.3608,97810.0,97803.0,0.2044209]
[1738944198261,0.00015335,97825.0,97795.0,0.4618135]
[1738944198262,0.00015335,97825.0,97813.0,0.3608]
[1738944198552,0.00015335,97825.0,97823.0,0.2043793]
[1738944199143,0.00015335,97825.0,97823.0,0.19867204]
[1738944199551,0.00015335,97825.0,97813.0,0.3608]
[1738944199947,0.00015335,97825.0,97823.0,0.2043776]
[1738944200654,0.00015335,97825.0,97813.0,0.3608]
[1738944200853,0.00015335,97825.0,97816.0,0.2043921]
[1738944201145,0.00015335,97825.0,97813.0,0.3608]
[1738944201352,0.00015335,97825.0,97823.0,0.2043781]
[1738944201548,0.00015335,97825.0,97796.0,0.2243]
[1738944201549,0.00015335,97825.0,97796.0,0.3608]
[1738944201741,0.3608,97824.0,97796.0,0.3608]
[1738944201943,0.5651788,97824.0,97813.0,0.2043991]
[1738944202344,0.00015335,97825.0,97814.0,0.3608]
[1738944202545,0.00015335,97825.0,97824.0,0.5651772]
[1738944202741,0.00153441,97840.0,97824.0,0.3608]
[1738944203057,0.3608,97829.0,97824.0,5.607e-05]
[1738944203248,0.2043749,97826.0,97824.0,5.607e-05]
[1738944203760,0.28841089,97840.0,97838.0,0.2043469]
[1738944203761,0.00153441,97840.0,97838.0,0.2043469]
[1738944204254,0.15007262,97842.0,97841.0,0.2043417]
[1738944204443,0.15007262,97842.0,97835.0,0.35034351]
[1738944204644,0.15007262,97842.0,97820.0,0.27598239]
[1738944204645,0.15007262,97842.0,97824.0,5.607e-05]
[1738944204850,0.2043666,97830.0,97824.0,5.607e-05]
[1738944205053,0.2043666,97830.0,97824.0,0.20443237]
[1738944205247,0.2043666,97830.0,97824.0,5.607e-05]
[1738944205458,0.2043666,97830.0,97828.0,0.2043676]
[1738944205759,0.16778313,97842.0,97824.0,5.607e-05]
[1738944205960,0.2043741,97826.0,97824.0,5.607e-05]
[1738944206256,0.2043741,97826.0,97824.0,0.00205607]
[1738944206558,0.2043657,97830.0,97824.0,0.20643147]
[1738944206858,0.01771051,97842.0,97832.0,0.2043587]
[1738944207048,0.204355,97835.0,97832.0,0.2043587]
[1738944207257,0.2043417,97841.0,97836.0,0.2043517]
[1738944207456,0.2043417,97841.0,97837.0,0.2043491]
[1738944207764,0.00140001,97862.0,97840.0,0.3608]
[1738944208057,0.3608,97872.0,97860.0,0.204302]
[1738944208251,0.3608,97872.0,97840.0,0.63678239]
[1738944208252,0.2042875,97867.0,97850.0,0.2043225]
[1738944208450,0.2042997,97862.0,97850.0,0.2043225]
[1738944208654,0.37153186,97872.0,97854.0,0.2043142]
[1738944208655,0.57581006,97872.0,97854.0,0.2043142]
[1738944208851,0.57721007,97872.0,97859.0,0.2043041]
[1738944209067,0.56647821,97872.0,97859.0,0.2043041]
[1738944209356,0.204325,97849.0,97848.0,0.00015335]